Cogmind - Beta 16 --- EXPLORER MODE // 2025.12.26 @ 11:59:53 Player: K.K.Y. Result: Destroyed by Y-54 Guardian with Gatling Laser Performance ------------- Evolutions (0) 0 Regions Visited (4) 800 Robots Destroyed (49) 245 Value Destroyed (1085) 1085 Prototype IDs (12) 240 Alien Tech Used (0) 0 Bonus (0) 0 TOTAL SCORE: 2370 Bonus ------- None Cogmind --------- Core Integrity 0/250 Matter 289/300 Energy 100/100 System Corruption 0% Temperature Cool (12) Movement Treading (360) Ox2 Location -7/Recycling Parts ------- > --- POWER (1) -------- (None) > --- PROPULSION (2) --- Spiked Treads Spiked Treads > --- UTILITY (3) ------ Huge Storage Unit Structural Scanner > --- WEAPON (2) ------- Slug Cannon Ripper > --- INVENTORY (25) --- Scrap Suit High-capacity Storage Unit Experimental Sensor Array Makeshift Light Armor Plating Tower Shield Makeshift Hacking Suite Heavy Battle Rifle Multitool SUBCON Basin (Full) Peak State ------------ > --- POWER ------------ Light Ion Engine > --- PROPULSION ------- Spiked Treads Spiked Treads > --- UTILITY ---------- Improved Heat Sink Huge Storage Unit Structural Scanner > --- WEAPON ----------- Slug Cannon Ripper > --- INVENTORY -------- Scrap Suit High-capacity Storage Unit Experimental Sensor Array Makeshift Light Armor Plating Tower Shield Makeshift Hacking Suite Heavy Battle Rifle Multitool SUBCON Basin [Rating: 41] Favorites ----------- Power Ion Engine Engine Ion Engine Power Core Light Nuclear Core Propulsion Light Treads Treads Light Treads Utility Structural Scanner Device Structural Scanner Storage Medium Storage Unit Weapon Ripper Energy Gun Particle Gun Ballistic Gun Light Assault Rifle Ballistic Cannon Slug Cannon Special Weapon Mining Laser Slashing Weapon Ripper Build | -11 -10 -10 -10 -7 ------- Run | Yrd Mat Min Sub Rec Slots Evolved 1 | . 1 . . . Power . | . . . . . Propulsion . | . . . . . Utility 1 | . 1 . . . Weapon . | . . . . . Parts Attached 29 | 6 4 4 15 . Power 4 | 1 . 1 2 . Engine 3 | 1 . 1 1 . Core 1 | . . . 1 . Reactor . | . . . . . Propulsion 7 | 2 1 1 3 . Treads 7 | 2 1 1 3 . Leg . | . . . . . Wheel . | . . . . . Hover . | . . . . . Flight . | . . . . . Utility 8 | 1 1 1 5 . Device 5 | . 1 1 3 . Storage 3 | 1 . . 2 . Processor . | . . . . . Hackware . | . . . . . Protection . | . . . . . Artifact . | . . . . . Weapon 10 | 2 2 1 5 . Energy Gun 4 | 1 1 1 1 . Energy Cannon . | . . . . . Ballistic Gun 3 | 1 1 . 1 . Ballistic Cannon 1 | . . . 1 . Launcher . | . . . . . Special Weapon 1 | . . . 1 . Impact Weapon . | . . . . . Slashing Weapon 1 | . . . 1 . Piercing Weapon . | . . . . . Special Melee Weapon . | . . . . . Unidentified Prototypes . | . . . . . Parts Lost 3 | . . . 3 . Power 2 | . . . 2 . Propulsion . | . . . . . Utility 1 | . . . 1 . Weapon . | . . . . . Highest Loss Streak 1 | . . . 1 . To Critical Strikes . | . . . . . Average Backups 7 | . 3 6 9 8 Power . | . . . . . Propulsion . | . . . . . Utility 5 | . 2 4 7 6 Weapon 1 | . 1 1 1 1 Tool/Special . | . . . . . Unused Backups 10 | . 1 . 2 7 Power . | . . . . . Propulsion 1 | . 1 . . . Utility 7 | . . . 2 5 Weapon 1 | . . . . 1 Tool/Special 1 | . . . . 1 Average Slot Usage (%) 90 | . 77 98 96 75 Engine 8 | . 12 12 6 . Core 1 | . . . 3 . Treads 25 | . 25 25 25 25 Device 17 | . 2 23 24 12 Storage 12 | . 12 12 12 12 Energy Gun 8 | . 12 23 2 . Ballistic Gun 4 | . 12 1 3 . Ballistic Cannon 5 | . . . 7 12 Slashing Weapon 6 | . . . 10 12 Peak Build Rating 41 | 6 8 14 41 37 Average Rating 18 | 5 6 12 24 37 On Entrance 13 | . 6 8 14 37 Avg Prop Armor Cover (%) . | . . . . . Naked Turns . | . . . . . Heaviest Build 95 | 17 21 23 95 91 Greatest Support 40 | 40 40 40 40 40 Greatest Overweight (x) 2 | . . . 2 2 Average Overweight (x) . | . . . . 2 Largest Inventory Capacity 25 | 10 10 10 25 25 Average Capacity 14 | 9 10 10 15 25 Most Carried 25 | 5 6 9 25 25 Average Carried 10 | . 3 6 13 25 Final Capacity 25 | 10 10 10 25 25 Final Carried 25 | 1 5 9 25 25 Class Distribution -------------------- 100% | Hacker-Mutant Dominant Class ---------------- Hacker-Mutant | -10/Materials Hacker-Mutant | -10/Mines Hacker-Mutant | -10/Subcaves Hacker-Mutant | -7/Recycling Resources | -11 -10 -10 -10 -7 ----------- Run | Yrd Mat Min Sub Rec Matter Collected 838 | 274 133 58 372 1 Remotely . | . . . . . Salvage Created 1452 | 164 496 299 493 . Parts 95 | 17 36 15 27 . Haulers Intercepted 1 | . 1 . . . Recyclers Shooed . | . . . . . Parts Field Recycled . | . . . . . Retrieved Matter . | . . . . . Parts Self-Destructed . | . . . . . Prevented . | . . . . . Parts Restored . | . . . . . Kills | -11 -10 -10 -10 -7 ------- Run | Yrd Mat Min Sub Rec Combat Hostiles Destroyed 30 | . 11 4 15 . Melee 7 | . . . 7 . Guns 17 | . 11 4 2 . Cannons 6 | . . . 6 . Classes Destroyed 11 | 2 6 1 2 . Worker 2 | . . 2 . . Builder 2 | . 2 . . . Tunneler 6 | 5 1 . . . Hauler 1 | . 1 . . . Recycler 3 | 1 . 2 . . Turret 2 | . . . 2 . Watcher 3 | . 3 . . . Swarmer 10 | . 4 2 4 . Grunt 9 | . 5 2 2 . Sentry 1 | . . . 1 . Subdweller 10 | . 2 . 8 . Best Kill Streak 5 | 2 5 2 4 . Combat Bots Only 3 | . 3 2 2 . Max Kills in Single Turn 2 | 1 2 1 1 . Gunslinging . | . . . . . Exploded . | . . . . . Melee 1 | . . . 1 . Uniques/NPCs Destroyed . | . . . . . Combat | -11 -10 -10 -10 -7 -------- Run | Yrd Mat Min Sub Rec Hostile Shots Fired 220 | . 73 10 134 3 Missed 59 | . 19 1 38 1 Hits 161 | . 54 9 96 2 Projectile 161 | . 54 9 96 2 Critical Strikes 1 | . 1 . . . Damage Taken 1492 | . 455 63 962 12 Core 254 | . 65 . 183 6 Absorbed by Shields . | . . . . . Ignored by Resistances 861 | . 284 40 529 8 Core Remaining (%) 100 | 100 . . . . Volleys Fired 135 | 16 60 14 43 2 Largest 2 | 2 2 2 2 1 Hottest 130 | 60 85 130 130 40 Shots Fired 219 | 32 112 28 45 2 Gun 182 | 32 112 28 10 . Cannon 35 | . . . 33 2 Launcher . | . . . . . Special 2 | . . . 2 . Kinetic 118 | 16 55 6 39 2 Thermal 101 | 16 57 22 6 . Explosive . | . . . . . Electromagnetic . | . . . . . Robot Hit Streak 25 | 16 25 18 12 12 Robot Miss Streak 2 | 1 1 2 2 1 Penetration Max . | . . . . . Secondary Targets 3 | . 2 1 . . Max Gunslinging Chain 1 | . 1 1 . . Shots Hit Robots 206 | 24 97 22 62 1 Core Hits 71 | 9 30 12 20 . Critical Kills 1 | . . . 1 . Critical Parts Destroyed 2 | . . 1 1 . Critical Strikes 4 | . . 2 2 . Burn 1 | . . 1 . . Destroy 3 | . . 1 2 . Melee Attacks 49 | . . . 49 . Impact . | . . . . . Slashing 49 | . . . 49 . Piercing . | . . . . . Sneak Attacks 1 | . . . 1 . Combat Hostiles . | . . . . . Follow-up Attacks . | . . . . . Damage Inflicted 3671 | 245 1037 320 2034 35 Guns 1751 | 245 1037 320 149 . Cannons 843 | . . . 808 35 Explosions . | . . . . . Melee 1077 | . . . 1077 . Ramming . | . . . . . Kinetic 1579 | 87 442 76 939 35 Thermal 1015 | 158 595 244 18 . Explosive . | . . . . . Electromagnetic . | . . . . . Impact . | . . . . . Slashing 1077 | . . . 1077 . Piercing . | . . . . . Highest Corruption . | . . . . . Average Corruption . | . . . . . Corruption Purged . | . . . . . Corruption Blocked . | . . . . . Overload Shots . | . . . . . Overflow Damage 28 | . . . 28 . Projectiles 28 | . . . 28 . Explosions . | . . . . . Melee . | . . . . . Knockbacks 12 | . . . 11 1 Impact . | . . . . . Kinetic 12 | . . . 11 1 Secondary . | . . . . . Self-Inflicted Damage . | . . . . . Shots . | . . . . . Rammed . | . . . . . Targets Rammed . | . . . . . Kicked . | . . . . . Crushed . | . . . . . Highest Temperature 240 | 20 240 189 . . Average Temperature 71 | 15 85 61 . . Received Heat Transfer 630 | . 276 51 291 12 Effects 1 | . 1 . . . Interference 1 | . 1 . . . Siege Activations . | . . . . . Martial Activations . | . . . . . Shielding Activations . | . . . . . Robots Disrupted . | . . . . . Combat Hostiles . | . . . . . Robots Corrupted . | . . . . . Combat Hostiles . | . . . . . Parts Fried . | . . . . . Impact Corruptions . | . . . . . Robots Melted . | . . . . . Combat Hostiles . | . . . . . Parts Melted 3 | . 3 . . . Heat Transferred 2424 | 350 1371 666 37 . Parts Sabotaged . | . . . . . Parts Stolen . | . . . . . Parts Stripped . | . . . . . Power Chain Reactions . | . . . . . Alert | -11 -10 -10 -10 -7 ------- Run | Yrd Mat Min Sub Rec Maximum Alert Level . | . . . . . Low Security (%) 100 | 100 100 100 . 100 Level 1 . | . . . . . Level 2 . | . . . . . Level 3 . | . . . . . Level 4 . | . . . . . Level 5 . | . . . . . High Security . | . . . . . Max Security . | . . . . . Peak Influence 40 | 5 40 35 . 1 Initial 2 | . 2 . . . Average 3 | . 4 2 . . Influence Increases 682 | 30 266 120 265 1 Destroy 0b10 Robot/C 440 | . 180 80 180 . Destroy 0b10 Robot/NC 85 | 30 35 20 . . Destroy Leader 78 | . 48 20 10 . Successful Hack 3 | . 3 . . . Destroy Structure 1 | . . . . 1 Lose Combat Pursuer 75 | . . . 75 . Influence Decreases 682 | 25 271 120 265 1 Entered New Map 3 | . 3 . . . Time Decay 669 | 25 268 120 255 1 Lost Part 10 | . . . 10 . Squads Dispatched . | . . . . . Investigation . | . . . . . Extermination . | . . . . . Reinforcement . | . . . . . Assault . | . . . . . Garrison . | . . . . . Intercept . | . . . . . Searches Triggered . | . . . . . Construction Impeded . | . . . . . Haulers Reinforced . | . . . . . Active Scanning Responses . | . . . . . Cargo Convoy Interrupts . | . . . . . Stealth | -11 -10 -10 -10 -7 --------- Run | Yrd Mat Min Sub Rec Distress Signals . | . . . . . Communications Jammed . | . . . . . Distress Signals . | . . . . . Times Spotted 39 | . 17 3 17 2 Peak Tracking Total 4 | . 4 2 4 2 Tactical Retreats 3 | . . . 3 . Traps | -11 -10 -10 -10 -7 ------- Run | Yrd Mat Min Sub Rec Traps Triggered 4 | . 1 . 3 . Indirectly . | . . . . . Trap Hack Attempts . | . . . . . Triggered . | . . . . . Disarmed . | . . . . . Reprogrammed . | . . . . . Reused . | . . . . . Traps Extracted . | . . . . . Installed . | . . . . . Triggered . | . . . . . Machines | -11 -10 -10 -10 -7 ---------- Run | Yrd Mat Min Sub Rec Machines Disabled 3 | . . . 3 . Max in Single Turn 1 | . . . 1 . Machines Repaired . | . . . . . Machines Dismantled . | . . . . . Machines Sabotaged . | . . . . . Overloaded Fab Kills . | . . . . . Hacking | -11 -10 -10 -10 -7 --------- Run | Yrd Mat Min Sub Rec Machines Accessed 5 | . 1 . 4 . Terminals 1 | . 1 . . . Fabricators . | . . . . . Repair Stations . | . . . . . Recycling Units . | . . . . . Scanalyzers . | . . . . . Garrison Access . | . . . . . Total Hacks 9 | . 1 . 8 . Successful 9 | . 1 . 8 . Failed . | . . . . . Catastrophic . | . . . . . Database Lockouts . | . . . . . Manual . | . . . . . Terminals 1 | . 1 . . . Fabricators . | . . . . . Repair Stations . | . . . . . Recycling Units . | . . . . . Scanalyzers . | . . . . . Garrison Access . | . . . . . Terminal Hacks 9 | . 1 . 8 . Record 5 | . . . 5 . Robot Analysis 1 | . 1 . . . Open Door 1 | . . . 1 . Proto ID Catalog 1 | . . . 1 . Release Object 1 | . . . 1 . Fabricator Hacks . | . . . . . Repair Station Hacks . | . . . . . Recycling Unit Hacks . | . . . . . Scanalyzer . | . . . . . Garrison Access Hacks . | . . . . . Unauthorized Hacks . | . . . . . Terminals . | . . . . . Fabricators . | . . . . . Repair Stations . | . . . . . Recycling Units . | . . . . . Scanalyzers . | . . . . . Garrison Access . | . . . . . Data Cores Recovered . | . . . . . Used . | . . . . . Hacking Detections 1 | . 1 . . . Full Trace Events . | . . . . . Feedback Events . | . . . . . Feedback Blocked . | . . . . . Robot Schematics Acquired . | . . . . . Robots Built . | . . . . . Authchips . | . . . . . Time . | . . . . . Total Robot Build Rating . | . . . . . Part Schematics Acquired . | . . . . . Parts Built . | . . . . . Authchips . | . . . . . Time . | . . . . . Total Part Build Rating . | . . . . . Part Studies Acquired . | . . . . . Parts Repaired . | . . . . . Time . | . . . . . Parts Recycled . | . . . . . Recycled Matter . | . . . . . Retrieved Matter . | . . . . . Retrieved Components . | . . . . . Parts Scanalyzed . | . . . . . Part Schematics Acquired . | . . . . . Parts Damaged . | . . . . . Bothacking | -11 -10 -10 -10 -7 ------------ Run | Yrd Mat Min Sub Rec Used RIF Installer . | . . . . . Robots Hacked . | . . . . . Non-combat . | . . . . . Combat . | . . . . . Robot Hacks Applied . | . . . . . Relay Couplers Released . | . . . . . Fabnet Peak Effective % . | . . . . . Robots Rewired . | . . . . . Allies Hacked . | . . . . . Hacks Repelled . | . . . . . Allies | -11 -10 -10 -10 -7 -------- Run | Yrd Mat Min Sub Rec Total Allies . | . . . . . Largest Group . | . . . . . Highest-Rated Group . | . . . . . Highest-Rated Ally . | . . . . . Total Orders . | . . . . . Ally Attacks . | . . . . . Total Damage . | . . . . . Kills . | . . . . . Allies Corrupted . | . . . . . Allies Melted . | . . . . . Intel | -11 -10 -10 -10 -7 ------- Run | Yrd Mat Min Sub Rec Active Infowar (turns) 4882 | . 244 973 3181 484 Structural 4882 | . 244 973 3181 484 Robot Analysis Total 1 | . 1 . . . Derelict Logs Recovered 2 | . . . 2 . Drone Launches . | . . . . . Drone Recoveries . | . . . . . Exploration | -11 -10 -10 -10 -7 ------------- Run | Yrd Mat Min Sub Rec Turns Passed 6215 | 211 1366 973 3181 484 Spaces Moved 2905 | 88 734 561 1388 134 Core 21 | 21 . . . . Treads 2884 | 67 734 561 1388 134 Legs . | . . . . . Wheels . | . . . . . Hover . | . . . . . Flight . | . . . . . Fastest Speed 50 | 50 160 160 160 360 Average Speed 190 | 133 160 160 205 360 Slowest Speed 360 | 160 160 160 360 360 Overloaded Moves . | . . . . . Propulsion Burnouts . | . . . . . Robots Hopped . | . . . . . Potential Cave-ins . | . . . . . Cave-ins Triggered . | . . . . . Exploration Rate (%) 64 | 4 95 93 82 46 Regions Visited 4 Branch Regions 3 Pre-discovered Areas 1 | . . . 1 . Known Exits Taken 4 | 1 1 1 1 . Unknown Exits Taken . | . . . . . Scrap Searched 17 | . . . 17 . Spaces Dug 1 | . . . 1 . Terrain Destroyed 6 | . . . 5 1 Melee 1 | . . . 1 . Projectile 5 | . . . 4 1 AOE . | . . . . . Terrain Rammed . | . . . . . Walls Destroyed . | . . . . . Machines Disabled . | . . . . . Actions | -11 -10 -10 -10 -7 --------- Run | Yrd Mat Min Sub Rec Total 3316 | 152 822 609 1597 136 Wait 147 | 37 12 19 79 . Move 2901 | 87 733 560 1387 134 Hop . | . . . . . Pick Up 32 | 6 9 8 9 . Fast Attach 3 | 1 . . 2 . Attach 7 | 5 1 1 . . Detach 1 | . . . 1 . Swap 20 | . 3 3 14 . Drop 21 | . 4 4 13 . Fire 135 | 16 60 14 43 2 Melee 49 | . . . 49 . Ram . | . . . . . Kick . | . . . . . Crush . | . . . . . Escape Stasis . | . . . . . Rewire . | . . . . . Trap . | . . . . . Miscellaneous . | . . . . . Route ------- -11/Scrapyard -10/Materials (discovered 6 exits: *Mat x3 / *Min x2 / *Sub) -10/Mines (discovered 4 exits: *Mat x2 / *Exi / *Sub) -10/Subcaves (discovered 3 exits: *Mat x2 / *Rec) -7/Recycling History --------- Turn | Location | Event 6 | -11/Scrapyard | Identified exit to Materials 6 | -11/Scrapyard | Discovered exit to Materials (range 16) 212 | -11/Scrapyard | Entered Materials 212 | -10/Materials | Evolved 1 slot: Utility x1 308 | -10/Materials | Build established: Hacker-Mutant 390 | -10/Materials | Identified exit to Materials 390 | -10/Materials | Discovered exit to Materials (range 16) 717 | -10/Materials | Discovered exit to Materials (range 16) 717 | -10/Materials | Identified exit to Subcaves 717 | -10/Materials | Discovered exit to Subcaves (range 10) 810 | -10/Materials | Identified exit to Mines 810 | -10/Materials | Discovered exit to Mines (range 15) 1112 | -10/Materials | Derelicts attacked the area 1151 | -10/Materials | Discovered exit to Mines (range 16) 1189 | -10/Materials | Discovered exit to Materials (range 14) 1578 | -10/Materials | Entered Mines 1798 | -10/Mines | Discovered exit to Materials (range 12) 1805 | -10/Mines | Received a Rocket Launcher from a helpful Derelict 1926 | -10/Mines | Found a hidden stash of uninstalled traps 1970 | -10/Mines | Found a Scrap Suit stashed away for nefarious purposes 1974 | -10/Mines | Found Scrap Suit 2050 | -10/Mines | A weapon hastily lodged in a ceiling crevice suddenly fell to the ground 2100 | -10/Mines | Deemed a non-threat by the Exiles lab entrance 2100 | -10/Mines | Identified exit to Exiles 2100 | -10/Mines | Discovered exit to Exiles (range 5) 2371 | -10/Mines | Found a damaged Exp. Sensor Array with a note attached 2374 | -10/Mines | Found Prototype Device 2412 | -10/Mines | Discovered exit to Materials (range 14) 2540 | -10/Mines | Discovered exit to Subcaves (range 6) 2551 | -10/Mines | Entered Subcaves 3175 | -10/Subcaves | Identified exit to Materials 3175 | -10/Subcaves | Discovered exit to Materials (range 7) 3636 | -10/Subcaves | Core integrity fell below 50% 3786 | -10/Subcaves | Shifting Twisted Machinery released Shrapnel Trap 3789 | -10/Subcaves | Shifting Twisted Machinery released Scrap Shield 4338 | -10/Subcaves | Visited Clippyterm 4346 | -10/Subcaves | Learned Factory fabricator intel 4507 | -10/Subcaves | Discovered exit to Materials (range 10) 4509 | -10/Subcaves | Shifting Twisted Machinery released Flamer 4543 | -10/Subcaves | Shifting Twisted Machinery released Battle Rifle 4627 | -10/Subcaves | Learned 4 Materials zone layouts 4645 | -10/Subcaves | Visited 4L-MR0's lab 4675 | -10/Subcaves | Found Tower Shield 4745 | -10/Subcaves | Learned location of Zion (-6) 5008 | -10/Subcaves | Core integrity fell below 20% 5085 | -10/Subcaves | Found SUBCON Basin 5222 | -10/Subcaves | Disturbed a concealed Subdweller 5407 | -10/Subcaves | Identified exit to Recycling 5407 | -10/Subcaves | Discovered exit to Recycling (range 10) 5732 | -10/Subcaves | Entered Recycling 6216 | -7/Recycling | Destroyed by Y-54 Guardian with Gatling Laser Last Messages --------------- 05421_ Destroyed Autobeam. 05421_ Autobeam Turret destroyed. 05435_ Acquired 34 matter. 05442_ Acquired 50 matter. 05445_ Subatomizers dissect the Sub. Power Source, destroying it. 05456_ Subatomizers dissect the Lgt. Ion Engine. 05497_ H9-MBC(R): "ECOKILL!" 05504_ H9-MBC(R) knocked back. 05506_ Imp. Heat Sink destroyed. 05510_ H9-MBC(R) suffers critical hit (Destroy). 05510_ H9-MBC(R) destroyed. 05512_ Acquired 38 matter. 05516_ Acquired 4 matter. LOCATION=RECYCLING GOAL=ESCAPE 06085_ R-06 Scavenger knocked back. 06100_ Acquired 1 matter. 06210_ Y-54 Guardian springs to life. Map ----- +----------------------------------------------------+ | | | | | ????????????????????????????????????? | | ????????????????????????????????????? | | ????????????????????????????????????? | | ????????????????????????????????????? | | ????????????????????????????????????? | | ????????????????????????????????????? | | ????????????????????????????????????? | | ????????????????????????????????????? | | ????????????????????????????????????? | | ????????????????????????????????????? | | ????????????????????????????????????? | | ????????????????????????????????????? | | ????????????????????????????????????? | | ????????????????????????????????????? | | ??????????????????####??????????????? | | ???????????????? #####"""##?????????? | | ???????????????? ## ##"Y"##?????????? | | ????#####??????? ?????????? | | ?#############"" ?????????? | | ###### ######### ?????????? | | ### # Y ????????? | | ## # ????????? | | ?## # r ????????? | | ?## # @ ####"T"##?????????????? | | ?## # #####?###?????????????? | | ?## # ##????????????????????? | | ?## # # ????????????????????? | | ?## # # ????????????????????? | | ?## + + ????????????????????? | | ?## # # ????????????????????? | | ?## # ##????????????????????? | | ?####+##+## ##????????????????????? | | ?#### ######????????????????? | | ?####+######+#######????????????????? | | ?## ##????????????????? | | ?## ##????????????????? | | ?## ##????????????????? | | ?## ##????????????????? | | ?## ##????????????????? | | ?## ##????????????????? | | ?## ##????????????????? | | ### ##????????????????? | | ## ##????????????????? | | ### ##????????????????? | | ##############/#####??####??????????? | | ?############# ###############??????? | | ????????????## ######## ######??????? | | ???????????? # # ??????? | +----------------------------------------------------+ Best States ------------- Heat Dissipation 39 Energy Generation 14 Energy Capacity 250 Matter Stores 300 Matter Capacity 300 Sight Range 16 Terrain Scan Density 10 Resistance: KI 35 Resistance: TH 35 Resistance: EX 35 Resistance: EM 35 Resistance: I 35 Resistance: S 35 Resistance: P 35 Evasion (%) 50 Recoil Reduction 2 Offensive Hacking 20 Item Schematics ----------------- None Robot Schematics ------------------ None Fabricated ------------ Nothing Repaired ---------- Nothing Studied --------- None Alien Tech Used ----------------- None Achievements -------------- None Challenges ------------ None Game ------ Seed ResetImprovedBasin Manual? 0 Play Time 00:22:16 Cumulative 230.1 hours Start 2025.12.26 @ 11:26:18 End 2025.12.26 @ 11:59:53 Sessions 1 Manual Loads 0 Difficulty Explorer Special Mode None Game No. 357 Rogue 0 Adventurer 0 Explorer 357 Win Type - Total 0 Types 0/0/0/0/0/0/0/0/0/0 Lore% 71 Gallery% 68 Achievement% 54 Wizard Run 0 Options --------- Layout 1 ASCII 0 Keyboard 0 Movement Mouse Keybinds 0 Fullscreen 1 Font 24/Smallcaps Map View 50x35 Zoom Use 0% Tactical HUD 1 Map Filters NONE Filters NONE Steam 1 RUN: 00c30dcf-4648-4c1b-ab65-f4a13520aeb4